[Event "Swedish Chess Championship 2019: Weekend 1"]
[Site "Stiga Sports Arena, Arenatorget 1, Eskilstuna, Sweden"]
[Date "2019.07.05"]
[Round "1.5"]
[White "Johansson, Roland"]
[Black "Jakenberg, Jussi"]
[Result "1/2-1/2"]
[TimeControl "90 minutes + 30 seconds per move from move one"]
[WhiteFideId "1716123"]
[BlackFideId "1710931"]
[WhiteElo "2002"]
[BlackElo "2099"]

1. e4 {[%clk 01:30:57]} {[%emt 00:00:01]} g6 {[%clk 01:30:24]} {[%emt
00:00:37]} 2. d4 {[%clk 01:31:20]} {[%emt 00:00:07]} Bg7 {[%clk 01:30:52]}
{[%emt 00:00:02]} 3. Nc3 {[%clk 01:31:33]} {[%emt 00:00:17]} c6 {[%clk
01:31:21]} {[%emt 00:00:02]} 4. Be3 {[%clk 01:31:08]} {[%emt 00:00:53]} d5
{[%clk 01:31:48]} {[%emt 00:00:04]} 5. e5 {[%clk 01:24:56]} {[%emt 00:06:42]}
f6 {[%clk 01:30:30]} {[%emt 00:01:47]} 6. exf6 {[%clk 01:20:04]} {[%emt
00:05:23]} Nxf6 {[%clk 01:27:30]} {[%emt 00:03:31]} 7. f3 {[%clk 01:19:40]}
{[%emt 00:00:53]} Qb6 {[%clk 01:24:21]} {[%emt 00:03:39]} 8. Qd2 {[%clk
01:15:38]} {[%emt 00:04:32]} Qxb2 {[%clk 01:21:47]} {[%emt 00:03:03]} 9. Rb1
{[%clk 01:15:25]} {[%emt 00:00:13]} Qa3 {[%clk 01:22:16]} {[%emt 00:00:02]} 10.
h4 {[%clk 01:14:58]} {[%emt 00:01:26]} Nbd7 {[%clk 01:17:23]} {[%emt 00:05:23]}
11. Rb3 {[%clk 01:06:22]} {[%emt 00:09:05]} Qa5 {[%clk 01:17:08]} {[%emt
00:00:46]} 12. Bh6 {[%clk 00:59:24]} {[%emt 00:07:28]} Bxh6 {[%clk 01:09:49]}
{[%emt 00:07:49]} 13. Qxh6 {[%clk 00:58:19]} {[%emt 00:01:35]} Qc7 {[%clk
01:05:11]} {[%emt 00:05:08]} 14. Bd3 {[%clk 00:52:09]} {[%emt 00:06:39]} Qg3+
{[%clk 00:47:04]} {[%emt 00:18:37]} 15. Kf1 {[%clk 00:51:16]} {[%emt 00:01:22]}
Rf8 {[%clk 00:45:48]} {[%emt 00:01:46]} 16. Nge2 {[%clk 00:46:23]} {[%emt
00:05:23]} Qd6 {[%clk 00:43:11]} {[%emt 00:03:07]} 17. Ke1 {[%clk 00:39:37]}
{[%emt 00:07:16]} Kd8 {[%clk 00:39:01]} {[%emt 00:04:41]} 18. Kd1 {[%clk
00:36:25]} {[%emt 00:03:41]} Kc7 {[%clk 00:33:32]} {[%emt 00:05:59]} 19. Re1
{[%clk 00:36:07]} {[%emt 00:00:49]} e5 {[%clk 00:29:45]} {[%emt 00:04:16]} 20.
dxe5 {[%clk 00:32:30]} {[%emt 00:04:07]} Nxe5 {[%clk 00:28:53]} {[%emt
00:01:23]} 21. Nd4 {[%clk 00:31:42]} {[%emt 00:01:18]} Bd7 {[%clk 00:26:05]}
{[%emt 00:03:18]} 22. Ncb5+ cxb5 {[%clk 00:26:20]} 23. Rc3+ {[%clk 00:20:20]}
{[%emt 00:00:05]} Kb6 {[%clk 00:19:35]} {[%emt 00:07:16]} 24. Qe3 {[%clk
00:20:03]} {[%emt 00:00:47]} Neg4 {[%clk 00:17:12]} {[%emt 00:02:53]} 25. Qg1
{[%clk 00:15:46]} {[%emt 00:04:47]} Qh2 {[%clk 00:08:42]} {[%emt 00:09:01]} 26.
Qf1 {[%clk 00:10:29]} {[%emt 00:05:47]} a6 {[%clk 00:07:10]} {[%emt 00:02:02]}
27. Bxb5 {[%clk 00:07:54]} {[%emt 00:03:04]} Bxb5 {[%clk 00:03:14]} {[%emt
00:04:27]} 28. Re6+ {[%clk 00:03:45]} {[%emt 00:04:39]} Ka7 {[%clk 00:02:51]}
{[%emt 00:00:53]} 29. Nxb5+ {[%clk 00:04:09]} {[%emt 00:00:06]} axb5 {[%clk
00:03:20]} 30. Qxb5 {[%clk 00:03:58]} {[%emt 00:00:42]} Qg1+ {[%clk 00:02:43]}
{[%emt 00:01:06]} 31. Re1 {[%clk 00:03:08]} {[%emt 00:01:20]} Nf2+ {[%clk
00:01:11]} {[%emt 00:02:02]} 32. Kd2 {[%clk 00:02:35]} {[%emt 00:01:03]} N6e4+
{[%clk 00:01:13]} {[%emt 00:00:28]} 33. fxe4 {[%clk 00:02:22]} {[%emt
00:00:43]} Nxe4+ {[%clk 00:01:42]} {[%emt 00:00:01]} 34. Rxe4 {[%clk 00:02:19]}
{[%emt 00:00:32]} Rf2+ {[%clk 00:01:32]} {[%emt 00:00:41]} 35. Re2 {[%clk
00:02:22]} {[%emt 00:00:27]} Rxe2+ {[%clk 00:02:01]} {[%emt 00:00:01]} 36. Qxe2
{[%clk 00:02:43]} {[%emt 00:00:08]} 1/2-1/2

[Event "Swedish Chess Championship 2019: Weekend 1"]
[Site "Stiga Sports Arena, Arenatorget 1, Eskilstuna, Sweden"]
[Date "2019.07.05"]
[Round "1.6"]
[White "Andric, Jelena"]
[Black "Eriksson, Joel"]
[Result "1/2-1/2"]
[TimeControl "90 minutes + 30 seconds per move from move one"]
[WhiteTitle "WFM"]
[WhiteFideId "919853"]
[BlackFideId "1729233"]
[WhiteElo "2099"]
[BlackElo "1998"]

1. c4 {[%clk 01:30:39]} {[%emt 00:00:20]} b6 {[%clk 01:30:55]} {[%emt
00:00:07]} 2. Nc3 {[%clk 01:30:36]} {[%emt 00:00:33]} Bb7 {[%clk 01:31:16]}
{[%emt 00:00:09]} 3. e4 {[%clk 01:30:06]} {[%emt 00:00:59]} e6 {[%clk
01:31:28]} {[%emt 00:00:18]} 4. a3 {[%clk 01:19:24]} {[%emt 00:11:12]} c5
{[%clk 01:26:42]} {[%emt 00:05:15]} 5. g3 {[%clk 01:02:19]} {[%emt 00:17:35]}
f5 {[%clk 01:26:01]} {[%emt 00:01:12]} 6. Bg2 {[%clk 00:59:58]} {[%emt
00:02:51]} Nf6 {[%clk 01:21:52]} {[%emt 00:04:39]} 7. d3 {[%clk 00:54:41]}
{[%emt 00:05:47]} Be7 {[%clk 01:18:01]} {[%emt 00:04:20]} 8. Nge2 {[%clk
00:52:25]} {[%emt 00:02:47]} O-O {[%clk 01:16:12]} {[%emt 00:02:19]} 9. O-O
{[%clk 00:50:32]} {[%emt 00:02:24]} fxe4 {[%clk 01:02:21]} {[%emt 00:14:21]} 10.
dxe4 {[%clk 00:50:00]} {[%emt 00:01:01]} a6 {[%clk 00:58:30]} {[%emt 00:04:21]}
11. e5 {[%clk 00:41:51]} {[%emt 00:08:39]} Bxg2 {[%clk 00:57:23]} {[%emt
00:01:38]} 12. exf6 {[%clk 00:37:11]} {[%emt 00:05:10]} Bxf1 {[%clk 00:57:34]}
{[%emt 00:00:19]} 13. fxe7 {[%clk 00:37:11]} {[%emt 00:00:30]} Qxe7 {[%clk
00:57:19]} {[%emt 00:00:45]} 14. Qxf1 {[%clk 00:36:42]} {[%emt 00:00:59]} Nc6
{[%clk 00:54:59]} {[%emt 00:02:49]} 15. Be3 {[%clk 00:23:02]} {[%emt 00:14:10]}
Ne5 {[%clk 00:51:31]} {[%emt 00:03:59]} 16. Nf4 {[%clk 00:16:20]} {[%emt
00:07:12]} g5 {[%clk 00:45:49]} {[%emt 00:06:12]} 17. Ng2 {[%clk 00:13:06]}
{[%emt 00:03:43]} Nf3+ {[%clk 00:43:09]} {[%emt 00:03:11]} 18. Kh1 {[%clk
00:13:30]} {[%emt 00:00:06]} Qg7 {[%clk 00:34:32]} {[%emt 00:09:07]} 19. Ne1
{[%clk 00:12:32]} {[%emt 00:01:27]} h6 {[%clk 00:28:18]} {[%emt 00:06:44]} 20.
Nxf3 {[%clk 00:11:35]} {[%emt 00:01:28]} Rxf3 {[%clk 00:28:42]} {[%emt
00:00:07]} 21. Rd1 {[%clk 00:11:29]} {[%emt 00:00:36]} Raf8 {[%clk 00:27:02]}
{[%emt 00:02:09]} 22. Qd3 {[%clk 00:11:00]} {[%emt 00:00:59]} R8f7 {[%clk
00:25:18]} {[%emt 00:02:14]} 23. Qd6 {[%clk 00:10:19]} {[%emt 00:01:12]} Qf6
{[%clk 00:24:16]} {[%emt 00:01:31]} 24. Qd2 {[%clk 00:08:16]} {[%emt 00:02:33]}
Qf5 {[%clk 00:22:02]} {[%emt 00:02:45]} 25. Kg2 {[%clk 00:07:32]} {[%emt
00:01:14]} Qg4 {[%clk 00:20:11]} {[%emt 00:02:21]} 26. h3 {[%clk 00:06:36]}
{[%emt 00:01:26]} Qxc4 {[%clk 00:19:14]} {[%emt 00:01:26]} 27. Qd3 {[%clk
00:05:39]} {[%emt 00:01:28]} Qxd3 {[%clk 00:18:40]} {[%emt 00:01:04]} 28. Rxd3
{[%clk 00:06:08]} {[%emt 00:00:01]} d5 {[%clk 00:18:24]} {[%emt 00:00:45]} 29.
Nxd5 {[%clk 00:04:11]} {[%emt 00:02:28]} exd5 {[%clk 00:18:36]} {[%emt
00:00:19]} 30. Rxd5 {[%clk 00:04:36]} {[%emt 00:00:05]} R3f5 {[%clk 00:17:11]}
{[%emt 00:01:54]} 31. Rd6 {[%clk 00:03:48]} {[%emt 00:01:19]} R5f6 {[%clk
00:16:54]} {[%emt 00:00:46]} 32. Rd8+ {[%clk 00:03:52]} {[%emt 00:00:26]} Kh7
{[%clk 00:16:58]} {[%emt 00:00:24]} 33. f4 {[%clk 00:03:39]} {[%emt 00:00:45]}
Re6 {[%clk 00:16:35]} {[%emt 00:00:51]} 34. Kf3 {[%clk 00:03:06]} {[%emt
00:01:04]} Rfe7 {[%clk 00:15:56]} {[%emt 00:01:08]} 35. Bd2 {[%clk 00:03:20]}
{[%emt 00:00:17]} gxf4 {[%clk 00:14:40]} {[%emt 00:01:46]} 36. gxf4 {[%clk
00:03:08]} {[%emt 00:00:43]} Kg6 {[%clk 00:12:57]} {[%emt 00:02:11]} 37. Rd5
{[%clk 00:03:09]} {[%emt 00:00:30]} Rf7 {[%clk 00:10:52]} {[%emt 00:02:35]} 38.
Kg4 {[%clk 00:03:12]} {[%emt 00:00:27]} Ref6 {[%clk 00:08:57]} {[%emt
00:02:24]} 39. h4 {[%clk 00:03:09]} {[%emt 00:00:34]} Kh7 {[%clk 00:07:16]}
{[%emt 00:02:10]} 40. h5 {[%clk 00:02:56]} {[%emt 00:00:44]} Rg7+ {[%clk
00:04:30]} {[%emt 00:03:16]} 41. Kf3 {[%clk 00:02:38]} {[%emt 00:00:49]} Rgf7
{[%clk 00:03:44]} {[%emt 00:01:15]} 42. Kg4 {[%clk 00:02:17]} {[%emt 00:00:52]}
Rg7+ {[%clk 00:03:52]} {[%emt 00:00:21]} 1/2-1/2

[Event "Swedish Chess Championship 2019: Weekend 1"]
[Site "Stiga Sports Arena, Arenatorget 1, Eskilstuna, Sweden"]
[Date "2019.07.05"]
[Round "1.7"]
[White "Bjornvall, Tord"]
[Black "Eriksson, Hans"]
[Result "0-1"]
[TimeControl "90 minutes + 30 seconds per move from move one"]
[WhiteFideId "1716557"]
[BlackFideId "1737040"]
[WhiteElo "1997"]
[BlackElo "1936"]

1. e4 {[%clk 01:30:17]} {[%emt 00:00:41]} c5 {[%clk 01:30:57]} {[%emt
00:00:04]} 2. d4 {[%clk 01:30:32]} {[%emt 00:00:15]} cxd4 {[%clk 01:31:22]}
{[%emt 00:00:06]} 3. c3 {[%clk 01:30:55]} {[%emt 00:00:06]} dxc3 {[%clk
01:31:46]} {[%emt 00:00:07]} 4. Nxc3 {[%clk 01:31:18]} {[%emt 00:00:07]} e6
{[%clk 01:32:09]} {[%emt 00:00:07]} 5. Nf3 {[%clk 01:31:05]} {[%emt 00:00:43]}
Ne7 {[%clk 01:32:34]} {[%emt 00:00:06]} 6. Bc4 {[%clk 01:30:00]} {[%emt
00:01:33]} Ng6 {[%clk 01:32:55]} {[%emt 00:00:10]} 7. O-O {[%clk 01:28:56]}
{[%emt 00:01:30]} Be7 {[%clk 01:33:18]} {[%emt 00:00:12]} 8. Qe2 {[%clk
01:27:03]} {[%emt 00:02:22]} a6 {[%clk 01:33:29]} {[%emt 00:00:20]} 9. Be3
{[%clk 01:24:42]} {[%emt 00:02:49]} O-O {[%clk 01:26:59]} {[%emt 00:07:01]} 10.
Rfd1 {[%clk 01:20:18]} {[%emt 00:04:53]} Nc6 {[%clk 01:20:21]} {[%emt
00:07:09]} 11. a3 {[%clk 01:18:31]} {[%emt 00:02:16]} b5 {[%clk 01:11:32]}
{[%emt 00:09:20]} 12. Ba2 {[%clk 01:17:51]} {[%emt 00:01:09]} Bb7 {[%clk
01:08:30]} {[%emt 00:03:33]} 13. Rac1 {[%clk 01:13:33]} {[%emt 00:04:47]} Rc8
{[%clk 01:02:27]} {[%emt 00:06:35]} 14. Nd4 {[%clk 01:01:20]} {[%emt 00:12:41]}
Nxd4 {[%clk 01:00:31]} {[%emt 00:02:28]} 15. Bxd4 {[%clk 01:00:53]} {[%emt
00:00:55]} Bc5 {[%clk 00:53:50]} {[%emt 00:07:11]} 16. Nxb5 {[%clk 00:58:54]}
{[%emt 00:02:30]} Bxd4 {[%clk 00:43:28]} {[%emt 00:10:53]} 17. Nxd4 {[%clk
00:58:22]} {[%emt 00:01:00]} Qg5 {[%clk 00:36:58]} {[%emt 00:07:01]} 18. Rxc8
{[%clk 00:56:32]} {[%emt 00:02:21]} Rxc8 {[%clk 00:37:20]} {[%emt 00:00:09]} 19.
Nf3 {[%clk 00:56:19]} {[%emt 00:00:42]} Qg4 {[%clk 00:32:37]} {[%emt 00:05:12]}
20. Bb1 {[%clk 00:53:07]} {[%emt 00:03:43]} Nh4 {[%clk 00:28:55]} {[%emt
00:04:13]} 0-1

[Event "Swedish Chess Championship 2019: Weekend 1"]
[Site "Stiga Sports Arena, Arenatorget 1, Eskilstuna, Sweden"]
[Date "2019.07.05"]
[Round "1.8"]
[White "Johansson, Roy"]
[Black "Svedberg, Hans"]
[Result "1/2-1/2"]
[TimeControl "90 minutes + 30 seconds per move from move one"]
[WhiteFideId "1745972"]
[BlackFideId "1705113"]
[WhiteElo "1932"]
[BlackElo "1993"]

1. d4 {[%clk 01:29:41]} {[%emt 00:01:18]} Nf6 {[%clk 01:29:42]} {[%emt
00:01:17]} 2. Bf4 {[%clk 01:29:44]} {[%emt 00:00:28]} g6 {[%clk 01:29:25]}
{[%emt 00:00:47]} 3. e3 {[%clk 01:30:09]} {[%emt 00:00:06]} Bg7 {[%clk
01:29:14]} {[%emt 00:00:41]} 4. h3 {[%clk 01:30:33]} {[%emt 00:00:06]} O-O
{[%clk 01:27:28]} {[%emt 00:02:16]} 5. Nf3 {[%clk 01:30:55]} {[%emt 00:00:08]}
d6 {[%clk 01:27:08]} {[%emt 00:00:50]} 6. Be2 {[%clk 01:31:16]} {[%emt
00:00:10]} c5 {[%clk 01:27:06]} {[%emt 00:00:33]} 7. c3 {[%clk 01:31:16]}
{[%emt 00:00:29]} Qb6 {[%clk 01:26:19]} {[%emt 00:01:16]} 8. Qb3 {[%clk
01:31:26]} {[%emt 00:00:22]} Be6 {[%clk 01:26:29]} {[%emt 00:00:19]} 9. Qa3
{[%clk 01:31:27]} {[%emt 00:00:29]} cxd4 {[%clk 01:15:44]} {[%emt 00:11:15]} 10.
exd4 {[%clk 01:31:27]} {[%emt 00:00:31]} Nd5 {[%clk 01:11:02]} {[%emt
00:05:11]} 11. Bh2 {[%clk 01:31:21]} {[%emt 00:00:36]} Bh6 {[%clk 01:10:08]}
{[%emt 00:01:23]} 12. O-O {[%clk 01:29:23]} {[%emt 00:02:28]} Nf4 {[%clk
01:07:04]} {[%emt 00:03:34]} 13. Bxf4 {[%clk 01:29:00]} {[%emt 00:00:53]} Bxf4
{[%clk 01:01:27]} {[%emt 00:06:08]} 14. Nbd2 {[%clk 01:27:52]} {[%emt
00:01:37]} Nc6 {[%clk 00:50:10]} {[%emt 00:11:48]} 15. Rad1 {[%clk 01:20:57]}
{[%emt 00:07:25]} d5 {[%clk 00:43:20]} {[%emt 00:07:20]} 16. Nb3 {[%clk
01:17:51]} {[%emt 00:03:36]} Bd6 {[%clk 00:31:40]} {[%emt 00:12:10]} 17. Nc5
{[%clk 01:17:29]} {[%emt 00:00:52]} a5 {[%clk 00:26:44]} {[%emt 00:05:27]} 18.
Na4 {[%clk 01:06:30]} {[%emt 00:11:28]} Qc7 {[%clk 00:21:44]} {[%emt 00:05:31]}
19. Qb3 {[%clk 01:06:38]} {[%emt 00:00:21]} Rab8 {[%clk 00:18:32]} {[%emt
00:03:42]} 20. Ng5 {[%clk 00:56:36]} {[%emt 00:10:33]} b5 {[%clk 00:16:29]}
{[%emt 00:02:34]} 21. Nc5 {[%clk 00:56:27]} {[%emt 00:00:38]} Bxc5 {[%clk
00:16:04]} {[%emt 00:00:55]} 22. dxc5 {[%clk 00:56:48]} {[%emt 00:00:09]} a4
{[%clk 00:15:16]} {[%emt 00:01:18]} 23. Qc2 {[%clk 00:55:24]} {[%emt 00:01:54]}
Qe5 {[%clk 00:11:54]} {[%emt 00:03:52]} 24. Nf3 {[%clk 00:54:30]} {[%emt
00:01:24]} Qc7 {[%clk 00:11:45]} {[%emt 00:00:40]} 25. Qd2 {[%clk 00:52:49]}
{[%emt 00:02:10]} f6 {[%clk 00:11:22]} {[%emt 00:00:53]} 26. Nd4 {[%clk
00:51:07]} {[%emt 00:02:13]} Nxd4 {[%clk 00:11:40]} {[%emt 00:00:12]} 27. cxd4
{[%clk 00:51:27]} {[%emt 00:00:09]} Bf7 {[%clk 00:11:40]} {[%emt 00:00:30]} 28.
Bf3 {[%clk 00:43:30]} {[%emt 00:08:27]} Kg7 {[%clk 00:11:30]} {[%emt 00:00:41]}
1/2-1/2

[Event "Swedish Chess Championship 2019: Weekend 1"]
[Site "Stiga Sports Arena, Arenatorget 1, Eskilstuna, Sweden"]
[Date "2019.07.05"]
[Round "1.9"]
[White "Wallenas, Joakim"]
[Black "Johansson, Sven"]
[Result "1-0"]
[TimeControl "90 minutes + 30 seconds per move from move one"]
[WhiteFideId "1728458"]
[BlackFideId "1716301"]
[WhiteElo "1991"]
[BlackElo "1927"]

1. e4 {[%clk 01:30:58]} {[%emt 00:00:02]} d6 {[%clk 01:30:55]} {[%emt
00:00:06]} 2. d4 {[%clk 01:31:19]} {[%emt 00:00:08]} Nf6 {[%clk 01:31:19]}
{[%emt 00:00:06]} 3. Nc3 {[%clk 01:31:41]} {[%emt 00:00:08]} Nbd7 {[%clk
01:31:44]} {[%emt 00:00:05]} 4. Bc4 {[%clk 01:26:24]} {[%emt 00:05:47]} e5
{[%clk 01:32:04]} {[%emt 00:00:10]} 5. Nf3 {[%clk 01:24:12]} {[%emt 00:02:42]}
Be7 {[%clk 01:32:27]} {[%emt 00:00:07]} 6. O-O {[%clk 01:22:09]} {[%emt
00:02:33]} c6 {[%clk 01:32:22]} {[%emt 00:00:36]} 7. Bg5 {[%clk 01:18:56]}
{[%emt 00:03:43]} Qc7 {[%clk 01:29:52]} {[%emt 00:02:59]} 8. dxe5 {[%clk
01:11:00]} {[%emt 00:08:26]} dxe5 {[%clk 01:29:25]} {[%emt 00:00:57]} 9. Qe2
{[%clk 01:09:40]} {[%emt 00:01:51]} Nf8 {[%clk 01:28:21]} {[%emt 00:01:34]} 10.
Rad1 {[%clk 01:07:27]} {[%emt 00:02:42]} Bg4 {[%clk 01:22:02]} {[%emt
00:06:49]} 11. Bb3 {[%clk 01:01:17]} {[%emt 00:06:40]} h6 {[%clk 01:16:50]}
{[%emt 00:05:42]} 12. Bxf6 {[%clk 00:59:56]} {[%emt 00:01:51]} Bxf6 {[%clk
01:14:22]} {[%emt 00:02:57]} 13. Qc4 {[%clk 00:52:21]} {[%emt 00:08:05]} Ne6
{[%clk 01:11:48]} {[%emt 00:03:05]} 14. Ne2 {[%clk 00:43:31]} {[%emt 00:09:20]}
O-O {[%clk 01:08:45]} {[%emt 00:03:33]} 15. Rd3 {[%clk 00:40:38]} {[%emt
00:03:22]} Rad8 {[%clk 01:03:11]} {[%emt 00:06:04]} 16. h3 {[%clk 00:38:01]}
{[%emt 00:03:08]} Rxd3 {[%clk 00:58:45]} {[%emt 00:04:56]} 17. Qxd3 {[%clk
00:38:15]} {[%emt 00:00:15]} Bxf3 {[%clk 00:47:16]} {[%emt 00:11:59]} 18. Qxf3
{[%clk 00:38:08]} {[%emt 00:00:37]} Nd4 {[%clk 00:46:39]} {[%emt 00:01:08]} 19.
Nxd4 {[%clk 00:36:37]} {[%emt 00:02:01]} exd4 {[%clk 00:47:01]} {[%emt
00:00:08]} 20. Qd3 {[%clk 00:35:56]} {[%emt 00:01:11]} Be5 {[%clk 00:38:01]}
{[%emt 00:09:30]} 21. g3 {[%clk 00:31:18]} {[%emt 00:05:08]} Qd7 {[%clk
00:37:40]} {[%emt 00:00:51]} 22. Kg2 {[%clk 00:27:49]} {[%emt 00:04:00]} b5
{[%clk 00:35:38]} {[%emt 00:02:32]} 23. f4 {[%clk 00:25:15]} {[%emt 00:03:04]}
Bc7 {[%clk 00:35:32]} {[%emt 00:00:23]} 24. c4 {[%clk 00:24:58]} {[%emt
00:00:59]} Bb6 {[%clk 00:27:22]} {[%emt 00:08:40]} 25. Rc1 {[%clk 00:22:22]}
{[%emt 00:03:06]} a5 {[%clk 00:26:04]} {[%emt 00:01:48]} 26. c5 {[%clk
00:20:15]} {[%emt 00:02:36]} Ba7 {[%clk 00:25:15]} {[%emt 00:01:19]} 27. e5
{[%clk 00:18:21]} {[%emt 00:02:24]} Re8 {[%clk 00:17:19]} {[%emt 00:08:26]} 28.
e6 {[%clk 00:15:46]} {[%emt 00:03:05]} Rxe6 {[%clk 00:12:04]} {[%emt 00:05:45]}
29. Bxe6 {[%clk 00:14:55]} {[%emt 00:01:20]} Qxe6 {[%clk 00:12:04]} {[%emt
00:00:30]} 30. Qxd4 {[%clk 00:12:41]} {[%emt 00:02:44]} Qxa2 {[%clk 00:12:16]}
{[%emt 00:00:18]} 31. Re1 {[%clk 00:11:27]} {[%emt 00:01:43]} Qb3 {[%clk
00:10:07]} {[%emt 00:02:40]} 32. Re8+ {[%clk 00:10:39]} {[%emt 00:01:17]} Kh7
{[%clk 00:09:07]} {[%emt 00:01:30]} 33. Qe4+ {[%clk 00:10:46]} {[%emt
00:00:23]} g6 {[%clk 00:09:25]} {[%emt 00:00:12]} 34. Qd4 {[%clk 00:09:30]}
{[%emt 00:01:46]} Qd5+ {[%clk 00:07:22]} {[%emt 00:02:33]} 35. Qxd5 {[%clk
00:09:46]} {[%emt 00:00:13]} cxd5 {[%clk 00:07:50]} {[%emt 00:00:03]} 36. Rc8
{[%clk 00:09:53]} {[%emt 00:00:23]} 1-0